Cogmind - Beta 13 *** ADVENTURER MODE // 2024.04.02 @ 21:47:14 Player: Lunace Result: Destroyed by B-86 Titan with Matter Neutralizer Performance ------------- Evolutions (6) 3000 Regions Visited (8) 1600 Robots Destroyed (7) 35 Value Destroyed (207) 207 Prototype IDs (5) 100 Alien Tech Used (0) 0 Bonus (0) 0 TOTAL SCORE: 4942 Bonus ------- None Cogmind --------- Core Integrity 0/1150 Matter 290/300 Energy 100/100 System Corruption 5% Temperature Cool (11) Movement Flying (35) Location -4/Factory Parts ------- > --- POWER (2) -------- (None) > --- PROPULSION (6) --- Improved Antigrav System VTOL Module > --- UTILITY (9) ------ Advanced Terrain Scan Processor > --- WEAPON (2) ------- (None) > --- INVENTORY (5) ---- Improved Deuterium Engine Matter Compressor (166) Structural Scanner Terrain Scan Processor Peak State ------------ > --- POWER ------------ Improved Deuterium Engine > --- PROPULSION ------- Improved VTOL Module Improved Surge Thruster Field Propulsion Drive Field Propulsion Drive Field Propulsion Drive > --- UTILITY ---------- Advanced Sensor Array Improved Terrain Scanner Advanced Terrain Scan Processor Hacking Suite System Shield Drone Bay Drone Bay Drone Bay > --- WEAPON ----------- (None) > --- INVENTORY -------- Improved Deuterium Engine Large Battery Medium Matter Pod Matter Compressor [Rating: 65] Favorites ----------- Power Improved Deuterium Engine Engine Improved Deuterium Engine Power Core Light Nuclear Core Propulsion Field Propulsion Drive Treads Medium Treads Wheel Wheel Hover Unit Hover Unit Flight Unit Field Propulsion Drive Utility Large Battery Device Advanced Sensor Array Storage Large Battery Processor Advanced Terrain Scan Processor Hackware Hacking Suite Weapon Assault Rifle Energy Gun Advanced Beam Rifle Energy Cannon Matter Neutralizer Ballistic Gun Assault Rifle Build | -11 -10 -9 -8 -7 -6 -5 -5 -4 ------- Run | Yrd Mat Mat Mat Fac Fac Fac Ext Fac Slots Evolved 12 | . . 2 2 2 2 2 . 2 Power 1 | . . . . . . . . 1 Propulsion 4 | . . 1 1 . 2 . . . Utility 7 | . . 1 1 2 . 2 . 1 Weapon . | . . . . . . . . . Parts Attached 79 | 6 13 10 6 19 9 9 1 6 Power 11 | 1 1 2 1 2 1 3 . . Engine 6 | 1 . 2 . 1 . 2 . . Core 5 | . 1 . 1 1 1 1 . . Reactor . | . . . . . . . . . Propulsion 35 | 2 8 7 4 7 1 3 . 3 Treads 2 | . . . . 2 . . . . Leg . | . . . . . . . . . Wheel 5 | 2 2 . . 1 . . . . Hover 16 | . 6 3 3 2 . . . 2 Flight 12 | . . 4 1 2 1 3 . 1 Utility 27 | 1 4 1 . 9 7 3 1 1 Device 18 | . 4 . . 5 5 3 1 . Storage 6 | 1 . 1 . 2 1 . . 1 Processor 1 | . . . . . 1 . . . Hackware 2 | . . . . 2 . . . . Protection . | . . . . . . . . . Artifact . | . . . . . . . . . Weapon 6 | 2 . . 1 1 . . . 2 Energy Gun 1 | . . . . 1 . . . . Energy Cannon 2 | . . . . . . . . 2 Ballistic Gun 3 | 2 . . 1 . . . . . Ballistic Cannon . | . . . . . . . . . Launcher . | . . . . . . . . . Special Weapon . | . . . . . . . . . Impact Weapon . | . . . . . . . . . Slashing Weapon . | . . . . . . . . . Piercing Weapon . | . . . . . . . . . Special Melee Weapon . | . . . . . . . . . Unidentified Prototypes 5 | . . . 1 2 . 1 . 1 Parts Lost 33 | . 2 . 7 8 . 2 9 5 Power 4 | . 1 . . 1 . 1 1 . Propulsion 17 | . . . 5 5 . 1 5 1 Utility 10 | . 1 . 1 2 . . 3 3 Weapon 2 | . . . 1 . . . . 1 Highest Loss Streak 6 | . 2 . 6 2 . 1 5 5 To Critical Strikes 1 | . . . 1 . . . . . Average Slot Usage (%) 47 | . 92 74 42 30 56 72 41 12 Engine 1 | . 5 1 . . . 3 1 . Core 1 | . 7 1 2 . 2 1 . . Treads 2 | . . . . 5 . . . . Hover 4 | . 16 25 8 2 . . . 1 Flight 8 | . . 5 12 1 16 31 12 . Device 10 | . 22 22 9 7 12 11 11 . Storage 6 | . 1 10 9 9 6 5 . 2 Processor 1 | . . . . . 3 5 5 5 Hackware 4 | . . . . 1 13 11 8 3 Ballistic Gun 3 | . 28 7 1 . . . . . Naked Turns . | . . . . . . . . . Heaviest Build 30 | 11 12 15 12 14 11 27 30 10 Greatest Support 50 | 20 20 18 16 50 15 30 30 12 Greatest Overweight (x) 3 | . 1 1 . 2 . . . 3 Average Overweight (x) . | . . . . . . . . . Largest Inventory Capacity 8 | 8 8 5 5 5 5 5 5 5 Average Capacity 5 | 7 5 5 5 5 5 5 5 5 Most Carried 5 | 3 5 5 3 5 5 5 5 5 Average Carried 2 | 1 3 3 . 1 3 4 4 4 Final Capacity 8 | 8 5 5 5 5 5 5 5 5 Final Carried 4 | 1 4 4 . 2 3 4 4 4 Class Distribution -------------------- 55% | Mutant 21% | Hacker-Scout 15% | Hacker-Mutant 4% | Hacker-Sprinter Dominant Class ---------------- Mutant | -10/Materials Mutant | -9/Materials Mutant | -8/Materials Mutant | -7/Factory Hacker-Sprinter | -6/Factory Hacker-Scout | -5/Factory Hacker-Scout | -5/Extension Hacker-Mutant | -4/Factory Resources | -11 -10 -9 -8 -7 -6 -5 -5 -4 ----------- Run | Yrd Mat Mat Mat Fac Fac Fac Ext Fac Matter Collected 1115 | 260 166 273 . 4 . 180 17 215 Remotely . | . . . . . . . . . Salvage Created 276 | . 166 . 20 . . . . 90 Parts 18 | . 11 . 3 . . . . 4 Haulers Intercepted . | . . . . . . . . . Recyclers Shooed . | . . . . . . . . . Parts Field Recycled . | . . . . . . . . . Retrieved Matter . | . . . . . . . . . Parts Self-Destructed . | . . . . . . . . . Prevented . | . . . . . . . . . Kills | -11 -10 -9 -8 -7 -6 -5 -5 -4 ------- Run | Yrd Mat Mat Mat Fac Fac Fac Ext Fac Combat Hostiles Destroyed 5 | . 2 . 1 . . . . 2 Melee 2 | . . . 1 . . . . 1 Guns 2 | . 2 . . . . . . . Classes Destroyed 4 | . 3 . 1 . . . . . Recycler 1 | . 1 . . . . . . . Watcher 1 | . 1 . . . . . . . Swarmer 2 | . . . 1 . . . . 1 Grunt 3 | . 2 . . . . . . 1 Best Kill Streak 2 | . 2 . 1 . . . . 1 Combat Bots Only 2 | . 2 . 1 . . . . 1 Max Kills in Single Turn 1 | . 1 . 1 . . . . 1 Gunslinging . | . . . . . . . . . Exploded . | . . . . . . . . . Melee 1 | . . . 1 . . . . 1 Uniques/NPCs Destroyed . | . . . . . . . . . Combat | -11 -10 -9 -8 -7 -6 -5 -5 -4 -------- Run | Yrd Mat Mat Mat Fac Fac Fac Ext Fac Hostile Shots Fired 748 | . 34 18 167 208 15 52 76 178 Missed 338 | . 7 10 74 101 10 29 32 75 Damage Taken 4461 | . 275 73 688 897 29 301 710 1488 Core 2242 | . 63 16 326 212 21 82 357 1165 Absorbed by Shields 50 | . . . . . . . 50 . Ignored by Resistances 1346 | . 83 20 219 292 10 89 212 421 Regen/Repaired (Parts) 92 | . 18 . . 62 12 . . . Core Remaining (%) 76 | 100 74 96 40 69 97 . 56 . Volleys Fired 24 | . 20 . 1 . . . . 3 Largest 2 | . 2 . 1 . . . . 1 Hottest 105 | . 40 . 20 . . . . 105 Shots Fired 44 | . 40 . 1 . . . . 3 Gun 41 | . 40 . 1 . . . . . Cannon 3 | . . . . . . . . 3 Launcher . | . . . . . . . . . Special . | . . . . . . . . . Kinetic 41 | . 40 . 1 . . . . . Thermal 3 | . . . . . . . . 3 Explosive . | . . . . . . . . . Electromagnetic . | . . . . . . . . . Robot Hit Streak 13 | . 13 . 1 . . . . 4 Robot Miss Streak 3 | . 3 . . . . . . . Penetration Max . | . . . . . . . . . Secondary Targets 1 | . 1 . . . . . . . Max Gunslinging Chain 1 | . 1 . . . . . . . Shots Hit Robots 32 | . 28 . 1 . . . . 3 Core Hits 32 | . 10 2 4 3 . . . 13 Critical Kills 1 | . . . . . . . . 1 Critical Parts Destroyed . | . . . . . . . . . Critical Strikes 1 | . . . . . . . . 1 Meltdown 1 | . . . . . . . . 1 Melee Attacks . | . . . . . . . . . Impact . | . . . . . . . . . Slashing . | . . . . . . . . . Piercing . | . . . . . . . . . Sneak Attacks . | . . . . . . . . . Combat Hostiles . | . . . . . . . . . Follow-up Attacks . | . . . . . . . . . Damage Inflicted 568 | . 311 16 53 7 . . . 181 Guns 311 | . 300 . 11 . . . . . Cannons 105 | . . . . . . . . 105 Explosions . | . . . . . . . . . Melee . | . . . . . . . . . Ramming 152 | . 11 16 42 7 . . . 76 Kinetic 311 | . 300 . 11 . . . . . Thermal 105 | . . . . . . . . 105 Explosive . | . . . . . . . . . Electromagnetic . | . . . . . . . . . Impact . | . . . . . . . . . Slashing . | . . . . . . . . . Piercing . | . . . . . . . . . Highest Corruption 5 | . . . . . . . 3 5 Average Corruption 2 | . . . . . . . 2 2 Corruption Purged . | . . . . . . . . . Corruption Blocked . | . . . . . . . . . Effects 3 | . . . . . . . 2 1 Message Errors 2 | . . . . . . . 1 1 Data Loss (minor) 1 | . . . . . . . 1 . Overload Shots . | . . . . . . . . . Overflow Damage . | . . . . . . . . . Projectiles . | . . . . . . . . . Explosions . | . . . . . . . . . Melee . | . . . . . . . . . Knockbacks . | . . . . . . . . . Impact . | . . . . . . . . . Kinetic . | . . . . . . . . . Secondary . | . . . . . . . . . Self-Inflicted Damage 64 | . 5 7 19 2 . . . 31 Shots . | . . . . . . . . . Rammed 42 | . 1 2 11 4 . . . 24 Targets Rammed 42 | . 1 2 11 4 . . . 24 Kicked . | . . . . . . . . . Crushed . | . . . . . . . . . Highest Temperature 102 | . 21 . 9 38 . 27 4 102 Average Temperature 15 | . 9 . 6 21 . 15 4 54 Received Heat Transfer 906 | . 198 48 90 261 12 48 54 195 Siege Activations . | . . . . . . . . . Robots Corrupted . | . . . . . . . . . Combat Hostiles . | . . . . . . . . . Parts Fried . | . . . . . . . . . Impact Corruptions . | . . . . . . . . . Robots Melted 1 | . . . . . . . . 1 Combat Hostiles 1 | . . . . . . . . 1 Parts Melted 1 | . . . . . . . . 1 Heat Transferred 111 | . . . . . . . . 111 Parts Sabotaged . | . . . . . . . . . Parts Stolen . | . . . . . . . . . Parts Stripped . | . . . . . . . . . Power Chain Reactions . | . . . . . . . . . Alert | -11 -10 -9 -8 -7 -6 -5 -5 -4 ------- Run | Yrd Mat Mat Mat Fac Fac Fac Ext Fac Peak Influence 325 | . 86 150 169 125 94 319 156 325 Initial 65 | . . 30 54 65 44 39 56 65 Average 77 | . 41 63 95 51 57 159 78 113 Maximum Alert Level 1 | . . . . . . 1 . 1 Low Security (%) 90 | 100 100 100 100 100 100 54 100 81 Level 1 9 | . . . . . . 45 . 18 Level 2 . | . . . . . . . . . Level 3 . | . . . . . . . . . Level 4 . | . . . . . . . . . Level 5 . | . . . . . . . . . High Security . | . . . . . . . . . Max Security . | . . . . . . . . . Squads Dispatched 6 | . . . 2 3 . . 1 . Investigation 1 | . . . . 1 . . . . Extermination 1 | . . . . 1 . . . . Reinforcement 4 | . . . 2 1 . . 1 . Assault . | . . . . . . . . . Garrison . | . . . . . . . . . Intercept . | . . . . . . . . . Searches Triggered . | . . . . . . . . . Construction Impeded . | . . . . . . . . . Haulers Reinforced . | . . . . . . . . . Active Scanning Responses . | . . . . . . . . . Cargo Convoy Interrupts . | . . . . . . . . . Stealth | -11 -10 -9 -8 -7 -6 -5 -5 -4 --------- Run | Yrd Mat Mat Mat Fac Fac Fac Ext Fac Distress Signals 6 | . . 1 1 1 . . 1 2 Communications Jammed . | . . . . . . . . . Distress Signals . | . . . . . . . . . Times Spotted 119 | . 4 8 26 15 6 20 19 21 Peak Tracking Total 21 | . 2 6 21 6 5 14 13 12 Tactical Retreats 23 | . . 4 1 6 1 3 3 5 Traps | -11 -10 -9 -8 -7 -6 -5 -5 -4 ------- Run | Yrd Mat Mat Mat Fac Fac Fac Ext Fac Traps Triggered 7 | . . 2 1 1 . . 2 1 Indirectly . | . . . . . . . . . Trap Hack Attempts . | . . . . . . . . . Triggered . | . . . . . . . . . Disarmed 6 | . 6 . . . . . . . Reprogrammed . | . . . . . . . . . Reused . | . . . . . . . . . Traps Extracted . | . . . . . . . . . Installed . | . . . . . . . . . Triggered 1 | . . . . . . . 1 . Machines | -11 -10 -9 -8 -7 -6 -5 -5 -4 ---------- Run | Yrd Mat Mat Mat Fac Fac Fac Ext Fac Machines Disabled . | . . . . . . . . . Max in Single Turn . | . . . . . . . . . Garrison Access 1 | . . . . 1 . . . . Machines Repaired . | . . . . . . . . . Machines Dismantled . | . . . . . . . . . Machines Sabotaged . | . . . . . . . . . Overloaded Fab Kills . | . . . . . . . . . Hacking | -11 -10 -9 -8 -7 -6 -5 -5 -4 --------- Run | Yrd Mat Mat Mat Fac Fac Fac Ext Fac Machines Accessed 19 | . 3 . 1 9 2 . 3 1 Terminals 10 | . 2 . . 4 1 . 3 . Fabricators 2 | . . . . 1 . . . 1 Repair Stations 3 | . 1 . . 1 1 . . . Recycling Units 1 | . . . . 1 . . . . Scanalyzers 2 | . . . 1 1 . . . . Garrison Access 1 | . . . . 1 . . . . Total Hacks 34 | . 6 . 2 17 3 . 4 2 Successful 23 | . 6 . 2 9 3 . 3 . Failed 11 | . . . . 8 . . 1 2 Catastrophic 2 | . . . . 2 . . . . Database Lockouts . | . . . . . . . . . Manual 1 | . . . . . . 1 . . Terminals 13 | . 3 . . 5 1 . 4 . Fabricators 3 | . . . . 1 . . . 2 Repair Stations 8 | . 3 . . 3 2 . . . Recycling Units 3 | . . . . 3 . . . . Scanalyzers 4 | . . . 2 2 . . . . Garrison Access 3 | . . . . 3 . . . . Terminal Hacks 8 | . 3 . . 1 1 . 3 . Record 1 | . . . . 1 . . . . Open Door 3 | . . . . . . . 3 . Open DSF 1 | . . . . . 1 . . . Disarm Traps 1 | . 1 . . . . . . . Maintenance Status 1 | . 1 . . . . . . . Hauler Manifests 1 | . 1 . . . . . . . Fabricator Hacks . | . . . . . . . . . Repair Station Hacks 7 | . 3 . . 2 2 . . . Scan Component 4 | . 2 . . 1 1 . . . Repair 3 | . 1 . . 1 1 . . . Recycling Unit Hacks 3 | . . . . 3 . . . . Process 1 | . . . . 1 . . . . Report Inventory 1 | . . . . 1 . . . . Retrieve Matter 1 | . . . . 1 . . . . Scanalyzer 4 | . . . 2 2 . . . . Insert Component 2 | . . . 1 1 . . . . Analyze 2 | . . . 1 1 . . . . Garrison Access Hacks 1 | . . . . 1 . . . . Seal Access 1 | . . . . 1 . . . . Unauthorized Hacks . | . . . . . . . . . Terminals . | . . . . . . . . . Fabricators . | . . . . . . . . . Repair Stations . | . . . . . . . . . Recycling Units . | . . . . . . . . . Scanalyzers . | . . . . . . . . . Garrison Access . | . . . . . . . . . Data Cores Recovered . | . . . . . . . . . Used . | . . . . . . . . . Hacking Detections 14 | . 2 . . 8 . 1 2 1 Full Trace Events 1 | . 1 . . . . . . . Feedback Events . | . . . . . . . . . Feedback Blocked . | . . . . . . . . . Robot Schematics Acquired . | . . . . . . . . . Robots Built . | . . . . . . . . . Authchips . | . . . . . . . . . Time . | . . . . . . . . . Total Robot Build Rating . | . . . . . . . . . Part Schematics Acquired 2 | . . . 1 1 . . . . Parts Built . | . . . . . . . . . Authchips . | . . . . . . . . . Time . | . . . . . . . . . Total Part Build Rating . | . . . . . . . . . Parts Repaired 3 | . 1 . . 1 1 . . . Time 94 | . 26 . . 30 38 . . . Parts Recycled . | . . . . . . . . . Recycled Matter 117 | . . . . 117 . . . . Retrieved Matter 117 | . . . . 117 . . . . Retrieved Components . | . . . . . . . . . Parts Scanalyzed 2 | . . . 1 1 . . . . Part Schematics Acquired 2 | . . . 1 1 . . . . Parts Damaged 1 | . . . . 1 . . . . Bothacking | -11 -10 -9 -8 -7 -6 -5 -5 -4 ------------ Run | Yrd Mat Mat Mat Fac Fac Fac Ext Fac Used RIF Installer . | . . . . . . . . . Robots Hacked . | . . . . . . . . . Non-combat . | . . . . . . . . . Combat . | . . . . . . . . . Robot Hacks Applied . | . . . . . . . . . Relay Couplers Released . | . . . . . . . . . Fabnet Peak Effective % . | . . . . . . . . . Robots Rewired . | . . . . . . . . . Allies Hacked . | . . . . . . . . . Hacks Repelled . | . . . . . . . . . Allies | -11 -10 -9 -8 -7 -6 -5 -5 -4 -------- Run | Yrd Mat Mat Mat Fac Fac Fac Ext Fac Total Allies 2 | . . . . . . . 2 . Largest Group 1 | . . . . . . . 1 . Highest-Rated Group 39 | . . . . . . . 39 . Highest-Rated Ally 39 | . . . . . . . 39 . Total Orders 9 | . . . . . 3 . 6 . EXPLORE 8 | . . . . . 2 . 6 . RETURN 1 | . . . . . 1 . . . Ally Attacks 4 | . . . . . . . 4 . Total Damage 81 | . . . . . . . 81 . Kills . | . . . . . . . . . Allies Corrupted . | . . . . . . . . . Allies Melted . | . . . . . . . . . Intel | -11 -10 -9 -8 -7 -6 -5 -5 -4 ------- Run | Yrd Mat Mat Mat Fac Fac Fac Ext Fac Robot Analysis Total . | . . . . . . . . . Derelict Logs Recovered . | . . . . . . . . . Drone Launches 8 | . . . . . 2 . 6 . Drone Recoveries . | . . . . . . . . . Exploration | -11 -10 -9 -8 -7 -6 -5 -5 -4 ------------- Run | Yrd Mat Mat Mat Fac Fac Fac Ext Fac Turns Passed 2481 | 35 230 134 122 1007 187 406 159 201 Spaces Moved 3902 | 31 197 187 248 1170 376 1029 355 309 Core 370 | 8 . 11 . 45 . . 65 241 Treads 315 | . . . . 315 . . . . Legs . | . . . . . . . . . Wheels 73 | 23 50 . . . . . . . Hover 833 | . 147 145 97 386 . . . 58 Flight 2311 | . . 31 151 424 376 1029 290 10 Fastest Speed 26 | 50 56 32 28 34 29 27 26 35 Average Speed 49 | 72 64 52 38 76 31 29 34 48 Slowest Speed 200 | 80 120 100 50 160 34 32 50 200 Overloaded Moves 1 | . . . . . . . 1 . Propulsion Burnouts 1 | . . . . . . . 1 . Robots Hopped 22 | . . . 8 4 1 5 4 . Cave-ins Triggered . | . . . . . . . . . Exploration Rate (%) 25 | 3 37 23 45 24 11 20 51 16 Regions Visited 8 Branch Regions 1 Pre-discovered Areas . | . . . . . . . . . Known Exits Taken . | . . . . . . . . . Unknown Exits Taken 8 | 1 1 1 1 1 1 1 1 . Scrap Searched . | . . . . . . . . . Spaces Dug . | . . . . . . . . . Terrain Destroyed . | . . . . . . . . . Melee . | . . . . . . . . . Projectile . | . . . . . . . . . AOE . | . . . . . . . . . Terrain Rammed . | . . . . . . . . . Walls Destroyed . | . . . . . . . . . Machines Disabled . | . . . . . . . . . Actions | -11 -10 -9 -8 -7 -6 -5 -5 -4 --------- Run | Yrd Mat Mat Mat Fac Fac Fac Ext Fac Total 4383 | 43 261 222 267 1275 443 1126 387 359 Wait 222 | . 16 13 . 55 46 77 14 1 Move 3853 | 30 196 186 232 1161 373 1019 347 309 Hop 19 | . . . 7 4 1 4 3 . Pick Up 84 | 7 11 8 5 23 8 12 . 10 Fast Attach . | . . . . . . . . . Attach 64 | 6 4 6 6 19 8 7 1 7 Detach 6 | . . . . 2 2 . 1 1 Swap 16 | . 9 4 . . 1 2 . . Drop 35 | . 4 3 5 7 4 5 3 4 Fire 24 | . 20 . 1 . . . . 3 Melee . | . . . . . . . . . Ram 42 | . 1 2 11 4 . . . 24 Kick . | . . . . . . . . . Crush . | . . . . . . . . . Escape Stasis 17 | . . . . . . . 17 . Rewire 1 | . . . . . . . 1 . Trap . | . . . . . . . . . Miscellaneous . | . . . . . . . . . Route ------- -11/Scrapyard -10/Materials -9/Materials -8/Materials -7/Factory -6/Factory -5/Factory -5/Extension -4/Factory History --------- Turn | Location | Event 2 | -11/Scrapyard | Met Revision 17 20 | -11/Scrapyard | Discovered new exit (range 15) 36 | -11/Scrapyard | Entered Materials 226 | -10/Materials | Discovered new exit (range 13) 261 | -10/Materials | Repaired Hover Unit 266 | -10/Materials | Entered another Materials area 266 | -9/Materials | Evolved 2 slots: Propulsion x1, Utility x1 336 | -9/Materials | Build established: Mutant 391 | -9/Materials | Discovered new exit (range 3) 400 | -9/Materials | Entered another Materials area 400 | -8/Materials | Evolved 2 slots: Propulsion x1, Utility x1 494 | -8/Materials | Core integrity fell below 50% 520 | -8/Materials | Discovered new exit (range 3) 522 | -8/Materials | Lost 6 parts (4n1u1w) 522 | -8/Materials | Entered Factory 522 | -7/Factory | Evolved 2 slots: Utility x2 730 | -7/Factory | Repaired Aerolev Unit 759 | -7/Factory | Noticed a derelict Sapper rigging charges 1524 | -7/Factory | Discovered new exit (range 15) 1529 | -7/Factory | Entered another Factory area 1529 | -6/Factory | Evolved 2 slots: Propulsion x2 1628 | -6/Factory | Discovered new exit (range 8) 1671 | -6/Factory | Repaired Imp. Sensor Array 1716 | -6/Factory | Entered another Factory area 1716 | -5/Factory | Evolved 2 slots: Utility x2 1838 | -5/Factory | Spotted B-75 Beast 2009 | -5/Factory | Build established: Hacker-Scout 2116 | -5/Factory | Discovered new exit (range 16) 2122 | -5/Factory | Entered Extension 2145 | -5/Extension | Spotted B-75 Beast 2148 | -5/Extension | Spotted B-75 Beast 2155 | -5/Extension | Rescued a captive Derelict 2186 | -5/Extension | Rescued a captive Derelict 2231 | -5/Extension | Lost 5 parts (1p3n1u) 2280 | -5/Extension | Discovered new exit (range 3) 2281 | -5/Extension | Entered Factory 2281 | -4/Factory | Evolved 2 slots: Power x1, Utility x1 2297 | -4/Factory | Lost 3 allies 2322 | -4/Factory | Lost 5 parts (2n3u) 2408 | -4/Factory | Core integrity fell below 50% 2435 | -4/Factory | Core integrity fell below 20% 2436 | -4/Factory | Spotted B-86 Titan 2444 | -4/Factory | Lost 4 parts (1n2u1w) 2482 | -4/Factory | Destroyed by B-86 Titan with Matter Neutralizer Last Messages --------------- W-44 Eye distress signal alerts nearby ally. Dropped Com. Matter Pod. Acquired Imp. Antigrav System. Extracted 97 matter. Slammed into S-27 Virus. F6IHD#AYNOQE|SGHB<|R>R,8 Slammed into S-27 Virus. S-27 Virus destroyed. Acquired 30 matter. Acquired VTOL Module. Slammed into P-70 Sage. Neutrino Reactor explodes. Door malfunctions. Chain reaction triggered in Corrupted Lgt. Nuclear Core. O-16 Technician: "IFF HANDSHAKE FAILED. SECURING TERMINAL." Neutrino Reactor explodes. R-10 Processor destroyed. K-01 Serf collects debris. Map ----- +----------------------------------------------------+ | ?????????????????????????????????????????????????? | | ?????????????????????????????????????????????????? | | ?????????????????????????????????????????????????? | | ?????????????????????????????????????????????????? | | ?????????????????????????????????????????????????? | | ?????????????????????????????????????????????????? | | ?????????????????????????????????????????????????? | | ?????????????????????????????????????????????????? | | ?????????????????????????????????????????????????? | | ?????????????????????????????????????????????????? | | ?????????????????????????????????????????????????? | | ?????????????????????????????????????????????????? | | ????????????????????????????? ???????????????????? | | ???????????????????????????? ???????????????????? | | ??????????????????????????? ???????????????????? | | ??????????????????????????? #???????????????????? | | ??????????????????????????? #???????????????????? | | ??????????????????????????? #???????????????????? | | ????????????????#########?? #??####?????????????? | | ????????????????# #? #? "T?????????????? | | ???########?????# #? # ???????????????? | | ???# /#?????#= #? # ????????????????? | | ???# ####### #? /R??????????????????? | | ???# = + / #? #???????????????????? | | ???# # ##### [ ## o########## ?????????? | | ???# !! # #??# #@ RR ????????? | | ???# # #??# # ????????? | | ???######## #??## / ""?????????? | | ########### #??# # "F?????????? | | # #??## # ????????? | | # #???# # ?????????? | | # ##### # ?????????? | | # # """ # ??????????? | | # # """ # ??????????? | | + # """ # == ??????????? | | # # # |%= ??????????? | | ! # #####?### R | ?????????? | | # #???????# """ k ?????????? | | # ######### """ ?????????? | | # BB""" ????????? | | # BB ????????? | | ########### ???????? | | ??????????# !!! ???????? | | ??????????# !!! ???????? | | ??????????###########+### !! ??????? | | ???????????????????! # = ???????? | | ????????????????? # !% ????????? | | ???????????????# # = "???????? | | ???????????????# """ # |% % ??????? | | ???????????????# """ # ! ??????? | +----------------------------------------------------+ Best States ------------- Heat Dissipation 43 Coolant Potential 50 Energy Generation 18 Energy Capacity 490 Matter Stores 450 Matter Capacity 450 Sight Range 16 Robot Scan Range 16 Terrain Scan Range 16 Terrain Scan Density 210 ECM Strength 2 Resistance: KI 20 Resistance: TH 20 Resistance: EX 20 Resistance: EM 20 Resistance: I 20 Resistance: S 20 Resistance: P 20 Evasion (%) 64 Recoil Reduction 2 Offensive Hacking 20 Defensive Hacking 10 Item Schematics ----------------- Assault Rifle | -8/Materials | Scanalyzed System Restoration Module | -7/Factory | Scanalyzed Robot Schematics ------------------ None Fabricated ------------ Nothing Alien Tech Used ----------------- None Achievements -------------- Omniscient Cartographer Release The Drones! Challenges ------------ None Game ------ Seed GrapheneTiamatTube Manual? 0 Play Time 01:10:26 Cumulative 8.1 hours Start 2024.04.02 @ 20:37:01 End 2024.04.02 @ 21:47:14 Sessions 1 Manual Loads 0 Difficulty Adventurer Special Mode None Game No. 9 Rogue 6 Adventurer 3 Explorer 0 Win Type - Total 0 Types 0/0/0/0/0/0/0/0/0 Lore% 5 Gallery% 17 Achievement% 16 Wizard Run 0 Options --------- Layout 1 ASCII 0 Keyboard 0 Movement Mouse Keybinds 0 Fullscreen 1 Font 24/Terminus Map View 50x35 Zoom Use 0% Tactical HUD 0 Map Filters NONE Filters NONE Steam 1 RUN: 6d2376ed-cbc6-4e1b-8c5c-e65741a3d432